[Event "44th Chess Olympiad Open 2022"]
[Site "Chennai"]
[Date "2022.08.03"]
[Round "6.27"]
[White "Gretarsson, Hjorvar Steinn"]
[Black "Mwali, Chitumbo"]
[Result "1-0"]
[WhiteElo "2563"]
[BlackElo "2320"]
[Annotator "TA"]
[PlyCount "65"]
[EventDate "2022.??.??"]
[TimeControl "60"]

{[%evp 26,65,54,67,54,59,57,22,56,37,47,51,54,13,25,24,13,9,235,218,211,216,
239,203,237,21,24,14,15,0,17,19,25,8,16,6,36,37,36,36,145,123]} 1. Nf3 {
[%emt 0:00:05]} Nf6 {[%emt 0:00:38]} 2. c4 {[%emt 0:00:06]} e6 {[%emt 0:02:19]}
3. Nc3 {[%emt 0:00:10]} c5 {[%emt 0:00:27]} 4. g3 {[%emt 0:00:27]} b6 {[%emt 0:
00:00]} 5. Bg2 {[%emt 0:00:14]} Bb7 {[%emt 0:00:03]} 6. O-O {[%emt 0:00:09]}
Be7 {[%emt 0:01:16]} 7. Re1 {[%emt 0:00:09]} a6 {[%emt 0:02:23]} 8. e4 {
[%emt 0:00:08]} d6 {[%emt 0:00:04]} 9. d4 {[%emt 0:00:49]} cxd4 {[%emt 0:00:03]
} 10. Nxd4 {[%emt 0:00:27]} Qc7 {[%emt 0:01:32]} 11. Be3 {[%emt 0:03:49]} O-O {
[%emt 0:00:25]} 12. Rc1 {[%emt 0:00:57]} Nbd7 {[%emt 0:00:09][%cal Yb8d7,Yd7e5,
Ye5d3]} 13. f4 {[%emt 0:03:28][%cal Yf2f4,Yf4f5]} Rfe8 {[%emt 0:31:32]} 14. g4
{[%emt 0:02:24][%cal Yg3g4,Yg4g5] [#] g5 is the strong threat.} g6 {[%emt 0:00:
32] A30: Symmetrical English: Double Fianchetto and Hedgehog.} 15. g5 {[%emt 0:
06:46]} Nh5 {[%emt 0:00:05]} 16. f5 {[%emt 0:00:30]} Bf8 {[%emt 0:01:56] The
position is equal.} 17. Bf3 {[%emt 0:00:00]} Ne5 {[%emt 0:17:56]} 18. Bxh5 {
[%emt 0:07:19]} gxh5 {[%emt 0:00:00]} 19. Qxh5 {[%emt 0:02:22] [#] Threatens
to win with Rf1.} (19. b3 $5 {[%cal Rh2h3]}) 19... Nd3 {[%emt 0:04:57]} 20. Rf1
{[%emt 0:08:30][%cal Yf1f3] [#] And now Rf3! would win.} ({Reject} 20. g6 fxg6
21. fxg6 Qg7 $17) 20... exf5 $146 {[%emt 0:02:12]} ({Predecessor:} 20... Nxc1
21. Rf3 exf5 22. Rh3 h6 23. gxh6 Kh8 24. Qxf5 Re5 25. Qf6+ Kh7 26. Rg3 Qe7 27.
Qf4 Bxe4 28. Nxe4 Rxe4 29. Qf5+ {1-0 (29) Kazoks,A (2489)-Gatto,C (2380) ICCF
email 2002}) 21. Rc2 {[%emt 0:03:54]} fxe4 {[%emt 0:05:58]} (21... f4 $1 $11 {
and Black stays safe.} 22. Bxf4 (22. Nd5 $2 Bxd5 23. cxd5 Qe7 $17) 22... Bxe4)
22. Nd5 $18 {[%emt 0:00:00]} Bxd5 {[%emt 0:00:50]} 23. cxd5 {[%emt 0:00:09]}
Qd7 {[%emt 0:03:13]} 24. Nf5 {[%emt 0:06:51] Strongly threatening Nh6+.} Ne5 {
[%emt 0:06:46]} 25. Bd4 $2 {[%emt 0:04:55]} ({Don't take} 25. Nh6+ $6 Bxh6 26.
gxh6 Ng6 $16) (25. Rg2 $18) 25... Rac8 {[%emt 0:09:58]} 26. Rxc8 $40 {[%emt 0:
08:51] White has some attack.} Qxc8 {[%emt 0:02:44]} (26... Rxc8 27. Bxe5 dxe5
28. Nh6+ Bxh6 29. gxh6 $18) 27. Bxe5 {[%emt 0:05:33]} Rxe5 {[%emt 0:01:30]} 28.
Ne3 {[%emt 0:00:15]} Bg7 {[%emt 0:00:30][%cal Yf7f6]} 29. Qxf7+ {[%emt 0:03:36]
} Kh8 {[%emt 0:00:16]} 30. Nf5 {[%emt 0:01:30][%csl Gf5][%cal Rf7g7]} Qg8 {
[%emt 0:00:43]} 31. Nxd6 {[%emt 0:01:57]} Rxg5+ {[%emt 0:00:27]} 32. Kh1 {
[%emt 0:00:12]} Rxd5 {[%emt 0:00:42]} (32... Bd4 $14 33. Qxg8+ Kxg8) 33. Qd7 {
[%emt 0:01:51] Weighted Error Value: White=0.30/Black=0.44} 1-0

[Event "44th Chess Olympiad Open 2022"]
[Site "Chennai"]
[Date "2022.08.03"]
[Round "6.27"]
[White "Kjartansson, Gudmundur"]
[Black "Lungu, Nase"]
[Result "1-0"]
[WhiteElo "2448"]
[BlackElo "2216"]
[Annotator "TA"]
[PlyCount "81"]
[EventDate "2022.??.??"]
[TimeControl "60"]

{[%evp 9,81,35,37,38,31,27,30,25,28,20,28,18,20,-1,3,-18,-14,-16,-15,-14,-7,
-23,-10,-30,-6,-27,0,0,0,-7,29,0,53,42,74,75,80,100,105,97,92,70,64,11,11,11,
11,11,10,14,14,16,17,16,41,41,41,41,42,38,41,42,43,41,105,102,135,110,1357,911,
724,718,650,620]} 1. Nf3 {[%emt 0:00:04]} c5 {[%emt 0:00:12]} 2. c4 {[%emt 0:
00:00]} Nc6 {[%emt 0:00:08][%cal Yb8c6,Yc6e5,Ye5f3]} 3. Nc3 {[%emt 0:00:00]} g6
{[%emt 0:00:26]} 4. e3 {[%emt 0:00:10]} d6 {[%emt 0:08:36]} 5. d4 {[%emt 0:00:
08]} Bg4 {[%emt 0:00:33]} 6. d5 {[%emt 0:01:43] A35: Symmetrical English: 2
Nc3 Nc6 3 Nf3.} Ne5 {[%emt 0:01:04]} 7. Be2 {[%emt 0:00:16]} Nxf3+ {[%emt 0:01:
56]} 8. gxf3 {[%emt 0:01:55] White has an edge.} Bh3 {[%emt 0:04:59]} 9. f4 {
[%emt 0:10:38]} Nf6 {[%emt 0:03:57] [#]} 10. Qd3 $146 {[%emt 0:02:01]} ({
Predecessor:} 10. Rg1 Bf5 11. Bf3 Bg7 12. e4 Bd7 13. Qe2 O-O 14. h4 e6 15. e5
Ne8 16. h5 {1-0 (52) Jones,G (2638)-Bjornsson,T (2143) Reykjavik 2013}) 10...
Bg7 {[%emt 0:20:49]} 11. e4 {[%emt 0:02:45]} Bg4 {[%emt 0:04:36]} 12. f3 {
[%emt 0:00:34]} Bd7 {[%emt 0:02:14]} 13. Be3 {[%emt 0:07:18]} a6 {[%emt 0:00:
00]} 14. Qd2 {[%emt 0:03:52]} Qc7 {[%emt 0:04:02]} 15. a3 {[%emt 0:14:57]} O-O
{[%emt 0:04:30]} 16. b4 {[%emt 0:04:41]} b6 {[%emt 0:09:39]} 17. Rg1 {[%emt 0:
00:00]} e6 {[%emt 0:05:10]} 18. dxe6 {[%emt 0:06:05]} fxe6 {[%emt 0:00:51]} 19.
Rd1 {[%emt 0:00:16]} Ne8 {[%emt 0:02:36]} 20. e5 {[%emt 0:03:22]} Rd8 {[%emt 0:
00:00]} (20... Rf7 $11) 21. exd6 $14 {[%emt 0:02:55]} Nxd6 {[%emt 0:00:35]} 22.
Qxd6 {[%emt 0:02:08]} Bxc3+ {[%emt 0:00:07]} 23. Kf2 {[%emt 0:00:06]} Qxd6 {
[%emt 0:09:42]} 24. Rxd6 {[%emt 0:00:04] aiming for Rgd1.} cxb4 {[%emt 0:00:04]
} 25. Bxb6 {[%emt 0:05:59]} Rb8 {[%emt 0:01:02][%cal Yb8b6]} 26. Bc7 {[%emt 0:
00:00]} ({Don't play} 26. Rxd7 Rxb6 27. axb4 Bxb4 $15) (26. Ba5 $1 $14 Ba4 27.
Bxb4 Bxb4 28. axb4) 26... Rb7 $1 $11 {[%emt 0:02:33]} 27. Rxd7 {[%emt 0:00:20]
Strongly threatening axb4.} Rc8 $1 {[%emt 0:02:09] [#]} 28. axb4 $1 {[%emt 0:
00:00][%cal Yc7e5] Be5! is the strong threat.} Rbxc7 {[%emt 0:01:57]} (28...
Rcxc7 29. Rxc7) 29. Rxc7 {[%emt 0:00:44]} Rxc7 {[%emt 0:00:01] Endgame KRB-KRB}
30. Rb1 {[%emt 0:00:36]} Rb7 {[%emt 0:01:11]} 31. b5 {[%emt 0:00:00]} axb5 {
[%emt 0:00:01]} 32. cxb5 {[%emt 0:01:09]} Bd4+ {[%emt 0:00:01]} 33. Kg3 {
[%emt 0:00:21]} Kg7 {[%emt 0:00:25]} 34. Bc4 {[%emt 0:02:47]} Kf6 {[%emt 0:00:
30]} 35. Re1 {[%emt 0:00:33]} Rb6 {[%emt 0:00:12]} 36. Re4 {[%emt 0:00:00]} Rd6
{[%emt 0:00:08] [#]} (36... Bc3 $14) 37. Bxe6 $1 $16 {[%emt 0:00:00]} Ba7 {
[%emt 0:02:28]} (37... Bg1 38. Bc8) 38. Bc4 {[%emt 0:14:06]} Rd2 $2 {[%emt 0:
02:43]} (38... Bg1 $16) 39. b6 $18 {[%emt 0:02:46][%cal Yb5b6,Yb6b7] White is
clearly winning.} Bb8 {[%emt 0:00:01]} 40. Re8 {[%emt 0:00:31]} Bd6 {[%emt 0:
00:36]} 41. b7 {[%emt 0:00:13] Weighted Error Value: White=0.09 (flawless) /
Black=0.10 (very precise)} 1-0

[Event "44th Chess Olympiad Open 2022"]
[Site "Chennai"]
[Date "2022.08.03"]
[Round "6.27"]
[White "Phiri, Richmond"]
[Black "Stefansson, Hannes"]
[Result "1/2-1/2"]
[WhiteElo "2293"]
[BlackElo "2541"]
[Annotator "TA"]
[PlyCount "75"]
[EventDate "2022.??.??"]
[TimeControl "60"]

{[%evp 14,75,0,0,22,0,27,25,27,19,24,0,3,0,18,6,19,13,8,6,9,8,15,35,32,33,31,
21,16,6,0,-24,-14,-18,0,0,0,0,0,0,0,0,0,-5,-4,-75,-72,-65,-16,-22,79,-186,-71,
-76,-56,-59,-58,-100,0,0,0,0,0,-29987]} 1. d4 {[%emt 0:00:08]} Nf6 {[%emt 0:00:
00]} 2. Nf3 {[%emt 0:00:24]} e6 {[%emt 0:00:34]} 3. g3 {[%emt 0:02:35]} b5 {
[%emt 0:01:20]} 4. Bg2 {[%emt 0:00:07]} d5 {[%emt 0:00:38]} 5. O-O {[%emt 0:00:
00]} Be7 {[%emt 0:00:24]} 6. a4 {[%emt 0:06:05]} b4 {[%emt 0:00:30]} 7. c4 {
[%emt 0:00:31]} bxc3 {[%emt 0:00:43]} 8. Nxc3 {[%emt 0:01:26]} O-O {[%emt 0:00:
00] A46:1 d4 Nf6 2 Nf3 e6: Torre, London and Colle Systems.} 9. Bf4 {[%emt 0:
00:00]} c6 {[%emt 0:11:15]} 10. a5 {[%emt 0:04:42]} Ba6 {[%emt 0:12:38] White
has an edge.} 11. Ne5 {[%emt 0:09:13] [#]} Bb4 $146 {[%emt 0:05:10]} ({
Predecessor:} 11... Qc8 12. Qa4 Nfd7 13. Rfc1 Nxe5 14. Bxe5 Qb7 15. e4 Bc4 16.
exd5 exd5 17. Nd1 Bb3 {½-½ (24) Hausrath,D (2484)-Graf,A (2576) Germany 2017}
) 12. Na4 {[%emt 0:51:40]} Nfd7 {[%emt 0:08:47]} 13. Bd2 {[%emt 0:02:12]} Bxd2
{[%emt 0:01:13]} 14. Nxd7 {[%emt 0:00:32]} Nxd7 {[%emt 0:00:10]} 15. Qxd2 {
[%emt 0:00:03]} Rb8 {[%emt 0:02:21]} 16. Rfc1 {[%emt 0:00:13]} Bc4 {[%emt 0:00:
00]} 17. b4 {[%emt 0:04:07]} Qe7 {[%emt 0:00:50]} 18. Rab1 {[%emt 0:00:52]} Rb7
{[%emt 0:02:25] [#]} 19. Rxc4 $1 {[%emt 0:04:22]} dxc4 {[%emt 0:00:06]} 20.
Bxc6 {[%emt 0:00:03]} Rc7 {[%emt 0:03:37]} 21. Bf3 {[%emt 0:00:07] White has
compensation.} Rb8 {[%emt 0:02:05][%cal Yc4c3]} 22. Qc3 {[%emt 0:00:00]} e5 {
[%emt 0:03:04]} 23. e3 {[%emt 0:00:41]} Qf6 {[%emt 0:00:44]} 24. Kg2 {[%emt 0:
03:11]} exd4 {[%emt 0:00:43]} 25. exd4 {[%emt 0:00:09]} Nf8 {[%emt 0:00:00]
[%cal Yd7f8,Yf8e6,Ye6d4]} 26. b5 {[%emt 0:01:13] Threatens to win with b6.} Ne6
$36 {[%emt 0:06:25][%cal Ye6f4] [#] aiming for ... Nf4+! White is under
pressure.} 27. b6 {[%emt 0:00:16]} axb6 {[%emt 0:00:12]} 28. Rxb6 {[%emt 0:01:
36]} Rd8 {[%emt 0:00:16] And now ...Qf5 would win.} 29. d5 {[%emt 0:01:12]} (
29. a6 $1 $11) 29... Qxc3 $17 {[%emt 0:00:08]} 30. Nxc3 {[%emt 0:00:03]} Nd4 {
[%emt 0:01:27]} (30... Nc5 $15 {was preferrable.}) 31. a6 $11 {[%emt 0:01:30]
d6 is the strong threat.} Ra7 {[%emt 0:05:27]} (31... Rcd7 $1 $11 {remains
equal.}) 32. Na4 $2 {[%emt 0:04:05]} (32. d6 $16 {is forced if you want to
stay better.}) 32... g6 {[%emt 0:05:49]} (32... Rda8 $19 {and Black stays
clearly on top.} 33. Bd1 Rxa6) 33. d6 $17 {[%emt 0:00:39]} Nf5 {[%emt 0:01:20]}
34. Bb7 {[%emt 0:00:37][%cal Yd6d7]} Nxd6 {[%emt 0:01:05]} 35. Kf3 {[%emt 0:00:
51]} c3 {[%emt 0:01:17]} ({Black should play} 35... Kg7 $17 36. Ke2 Nf5) 36.
Nxc3 $11 {[%emt 0:00:23] The position is equal.} Nxb7 {[%emt 0:00:25]} 37. Nb5
$1 {[%emt 0:00:21]} ({Don't blunder} 37. axb7 $2 Rb8 38. Ne4 Rbxb7 39. Rxb7
Rxb7 $19) 37... Rxa6 {[%emt 0:01:51]} 38. Ke4 $2 {[%emt 0:00:21] Weighted
Error Value: White=0.25 (precise) /Black=0.22 (precise) . An unexpected result.
} 1/2-1/2

[Event "44th Chess Olympiad Open 2022"]
[Site "Chennai"]
[Date "2022.08.03"]
[Round "6.27"]
[White "Kabwe Timothy"]
[Black "Gretarsson, Helgi Ass"]
[Result "0-1"]
[WhiteElo "2248"]
[BlackElo "2472"]
[Annotator "TA"]
[PlyCount "118"]
[EventDate "2022.??.??"]
[TimeControl "60"]

{[%evp 10,118,8,7,41,30,42,0,39,0,0,10,18,0,11,11,13,0,0,-21,-22,-32,-26,-28,
12,-23,-20,-35,-32,-81,-50,-107,-95,-128,-81,-84,-73,-72,-56,-44,-31,-50,-66,
-81,-79,-107,-25,-58,-31,-28,0,0,0,0,0,-47,-47,-47,-29,-47,-40,-42,-34,-47,-27,
-29,-27,-35,-35,-76,-91,-109,-85,-85,-66,-61,0,-85,-86,-87,-85,-233,-237,-224,
-228,-243,-243,-235,-236,-220,-182,-177,-199,-203,-195,-235,-106,-185,-183,
-202,-178,-187,-194,-297,-279,-408,-397,-551,-543,-493,-467]} 1. d4 {[%emt 0:
00:00]} g6 {[%emt 0:00:07]} 2. Nc3 {[%emt 0:00:28]} Bg7 {[%emt 0:00:15]} 3. e4
{[%emt 0:00:36][%cal Ye2e4,Ye4e5]} d6 {[%emt 0:00:05]} 4. f4 {[%emt 0:00:00]}
Nf6 {[%emt 0:07:36]} 5. e5 {[%emt 0:00:43]} Nfd7 {[%emt 0:01:43]} 6. Nf3 {
[%emt 0:04:24]} Nb6 {[%emt 0:24:41] B09: Pirc Defence: Austrian Attack.} 7. a4
{[%emt 0:04:00]} a5 {[%emt 0:00:19]} 8. Be3 {[%emt 0:01:52]} Na6 {[%emt 0:00:
59] The position is equal.} 9. Be2 {[%emt 0:08:00]} Nb4 {[%emt 0:00:00]} 10.
O-O {[%emt 0:01:10]} O-O {[%emt 0:01:22] [#]} 11. Rc1 $146 {[%emt 0:00:00]} ({
Predecessor:} 11. d5 dxe5 12. Bxb6 cxb6 13. fxe5 Bg4 14. Re1 Rc8 15. h3 Bf5 16.
Nd4 Bxe5 17. Nxf5 gxf5 {0-1 (36) Radzhabov,R (2404)-Golubka,P (2498) Chess.com
INT 2019}) 11... Be6 {[%emt 0:04:29]} 12. b3 {[%emt 0:00:25]} f6 {[%emt 0:01:
21]} 13. exf6 {[%emt 0:04:48]} exf6 {[%emt 0:00:01]} 14. Kh1 {[%emt 0:00:20]}
Re8 {[%emt 0:17:27][%cal Ye6b3]} 15. Qd2 {[%emt 0:01:57]} Bh6 {[%emt 0:02:33]}
16. g3 {[%emt 0:02:44]} d5 {[%emt 0:07:42]} 17. Rfe1 {[%emt 0:00:00]} Nc8 {
[%emt 0:00:17]} 18. Bf1 {[%emt 0:05:09]} Nd6 {[%emt 0:02:25]} 19. Bg2 {[%emt 0:
00:40]} (19. Nd1 $15) 19... Qd7 {[%emt 0:01:23]} 20. Ng1 {[%emt 0:00:00]} (20.
Nd1 $15) 20... c6 $17 {[%emt 0:00:28]} 21. h3 {[%emt 0:01:52]} Bf5 {[%emt 0:02:
03]} (21... Ne4 $142 22. Nxe4 (22. Bxe4 dxe4 23. Kh2 f5 $17) 22... dxe4 23.
Bxe4 Bxh3) 22. g4 {[%emt 0:15:10]} Be4 {[%emt 0:00:56]} 23. Nxe4 {[%emt 0:04:
03]} Nxe4 {[%emt 0:00:51]} 24. Bxe4 {[%emt 0:01:01]} dxe4 {[%emt 0:00:00]} 25.
Ne2 {[%emt 0:01:27][%cal Yf4f5]} f5 {[%emt 0:10:14]} 26. gxf5 {[%emt 0:01:05]}
Qxf5 {[%emt 0:00:29]} 27. Kg2 {[%emt 0:00:28]} Nd5 {[%emt 0:00:00] Black is
much more active.} (27... Rf8 $17 {[%cal Yc6c5]} 28. Rf1 Rae8) 28. Rf1 {
[%emt 0:03:50]} Qf8 {[%emt 0:00:10]} (28... c5 $5) 29. c4 {[%emt 0:01:19]} Ne7
{[%emt 0:01:28]} 30. Ng3 {[%emt 0:00:46]} Nf5 {[%emt 0:01:29]} 31. Nxf5 {
[%emt 0:00:23]} Qxf5 {[%emt 0:00:22]} 32. Qe2 {[%emt 0:00:19]} (32. d5 $11 {
was preferrable.}) 32... Rad8 $15 {[%emt 0:00:29]} 33. Qg4 {[%emt 0:00:28]} Bg7
{[%emt 0:00:49]} 34. Rcd1 {[%emt 0:00:45]} Bf8 {[%emt 0:01:11][%cal Yg7f8,
Yf8e7,Ye7b4]} 35. Kf2 {[%emt 0:01:02]} Kf7 {[%emt 0:00:27]} 36. Ke2 {[%emt 0:
00:54]} Rd7 {[%emt 0:00:40]} 37. Rg1 {[%emt 0:00:34]} Be7 {[%emt 0:00:00]} 38.
Qxf5+ {[%emt 0:00:15]} gxf5 {[%emt 0:01:55]} 39. Rd2 {[%emt 0:00:45]} Red8 {
[%emt 0:00:36]} 40. Rgd1 {[%emt 0:09:29]} Bb4 {[%emt 0:00:55]} 41. Rc2 {
[%emt 0:31:22]} Bc5 {[%emt 0:13:14][%cal Rc5d4]} 42. Rcd2 {[%emt 0:00:00]} Bb4
{[%emt 0:00:02]} 43. Rc2 {[%emt 0:00:00]} Rd6 {[%emt 0:00:17] Strongly
threatening ...Rg8.} 44. Rg1 {[%emt 0:00:00]} Rh6 $36 {[%emt 0:00:31] Black is
really pushing.} 45. Rg3 {[%emt 0:00:00] [#]} (45. Rcc1 $17) 45... Rg8 $1 $19 {
[%emt 0:00:16]} 46. Rxg8 {[%emt 0:00:00]} Kxg8 {[%emt 0:00:00] Endgame KRB-KRB}
47. Rc1 {[%emt 0:00:00]} Rxh3 {[%emt 0:00:54]} 48. Rg1+ {[%emt 0:00:00]} Kf7 {
[%emt 0:00:23]} 49. Rg5 {[%emt 0:00:00]} Rh2+ {[%emt 0:06:03]} 50. Kf1 {
[%emt 0:00:00]} Kf6 {[%emt 0:03:46]} 51. d5 {[%emt 0:00:00]} cxd5 {[%emt 0:03:
04]} 52. cxd5 {[%emt 0:00:00]} Bc3 {[%emt 0:00:17] Inhibits Bd4+.} (52... Rh1+
$19 53. Kf2 Rd1) 53. d6 {[%emt 0:00:00]} (53. Bb6 $17 {was called for.}) 53...
Ke6 {[%emt 0:00:09]} 54. d7 {[%emt 0:00:00]} Bf6 {[%emt 0:00:39]} ({Weaker is} 
54... Kxd7 55. Rxf5 h5 56. Rb5 $15 (56. Rc5 Bb4 $17)) 55. Rg7 {[%emt 0:00:00]}
Bd8 {[%emt 0:00:26] Inhibits Bb6.} 56. Ke1 {[%emt 0:00:00]} (56. Rg8 $142 Kxd7
57. Rf8) 56... h5 {[%emt 0:01:13][%cal Yh7h5,Yh5h4]} 57. Rh7 {[%emt 0:00:00]} (
57. Rg8 {is a better defense.} Kxd7 58. Rg7+ Ke6 59. Rg6+ Kf7 60. Rh6) 57... h4
{[%emt 0:00:26]} 58. Kf1 {[%emt 0:00:00]} Rb2 {[%emt 0:00:26]} 59. Bf2 {
[%emt 0:00:00]} Rxb3 {[%emt 0:00:00] Weighted Error Value: White=0.23 (precise)
/Black=0.16 (very precise)} 0-1

[Event "44th Chess Olympiad Open 2022"]
[Site "Chennai"]
[Date "2022.08.03"]
[Round "6.28"]
[White "Batsuren, Dambasuren"]
[Black "Msellek, Ilyass"]
[Result "1-0"]
[WhiteElo "2518"]
[BlackElo "2398"]
[Annotator "TA"]
[PlyCount "113"]
[EventDate "2022.??.??"]
[TimeControl "60"]

{[%evp 12,113,25,17,12,16,29,0,0,-10,-3,0,0,0,0,-8,49,0,0,0,0,0,0,0,72,68,98,
74,85,90,97,63,97,102,112,87,205,185,163,163,167,188,237,208,313,275,438,368,
397,310,321,314,321,325,302,310,297,270,280,248,310,300,275,272,269,255,300,36,
31,32,511,509,543,481,1343,1371,1383,1372,1336,1304,1323,1245,1008,741,732,732,
864,641,597,591,908,908,1072,1024,29962,11241,29965,12437,29975,29979,29984,
29985,29983,29961]} 1. d4 {[%emt 0:00:03]} Nf6 {[%emt 0:00:13]} 2. c4 {[%emt 0:
00:00]} e6 {[%emt 0:00:11]} 3. g3 {[%emt 0:00:19]} d5 {[%emt 0:01:27]} 4. Bg2 {
[%emt 0:00:46]} Be7 {[%emt 0:02:18]} 5. Nf3 {[%emt 0:00:09][%cal Yg1f3,Yf3e5,
Ye5c4]} O-O {[%emt 0:00:18]} 6. Nc3 {[%emt 0:00:12]} c6 {[%emt 0:00:00]} 7. O-O
{[%emt 0:01:42]} a5 {[%emt 0:02:50] E06: Closed Catalan: Early deviations.} 8.
b3 {[%emt 0:06:07]} b6 {[%emt 0:05:56][%cal Yb7b6,Yb6b5,Yb5b4]} 9. Ne5 {
[%emt 0:05:09]} Ba6 {[%emt 0:17:59] The position is equal.} 10. e4 {[%emt 0:08:
41]} dxc4 {[%emt 0:04:54]} 11. Nxc4 {[%emt 0:00:00]} b5 $1 {[%emt 0:03:58]} 12.
Ne3 {[%emt 0:06:35]} b4 {[%emt 0:00:00][%csl Yc3,Yf1]} 13. Ne2 {[%emt 0:00:12]
[#]} Nbd7 $146 {[%emt 0:13:00]} (13... a4 $11) ({Predecessor:} 13... a4 14. Nc4
Nbd7 15. Bf4 Nb6 16. Ne5 Bb5 17. Rc1 axb3 18. axb3 Rc8 19. Nd3 Nbd7 {1-0 (57)
Kryakvin,D (2560)-Kurbedinov,R (2318) Sochi 2017}) 14. Qc2 {[%emt 0:06:33]} (
14. Bb2 $14) 14... c5 $11 {[%emt 0:00:00]} 15. d5 {[%emt 0:02:10]} exd5 {
[%emt 0:03:47]} 16. exd5 {[%emt 0:05:15]} Bd6 {[%emt 0:07:39][%cal Ya5a4]} 17.
Bb2 {[%emt 0:02:34]} Be5 {[%emt 0:02:34]} (17... a4 $11 {remains equal.}) 18.
Rfd1 $16 {[%emt 0:16:03]} Re8 {[%emt 0:00:00][%cal Yf6g4]} 19. Bxe5 $1 {
[%emt 0:00:00]} Nxe5 {[%emt 0:02:07]} 20. d6 {[%emt 0:00:00]} Rc8 {[%emt 0:08:
52] [#]} 21. Nf5 $1 {[%emt 0:02:33]} Ng6 {[%emt 0:02:14] [#]} 22. Nf4 {[%emt 0:
03:48] White is much more active.} Nxf4 {[%emt 0:00:24]} 23. gxf4 {[%emt 0:01:
44]} Qd7 {[%emt 0:00:21]} (23... g6 $16 24. Ne7+ Rxe7 25. dxe7 Qxe7) 24. Ne7+ {
[%emt 0:02:18]} Rxe7 {[%emt 0:00:04]} 25. dxe7 {[%emt 0:00:06]} Qxe7 {[%emt 0:
00:03]} 26. Qf5 {[%emt 0:02:25] Against Nh5} h5 {[%emt 0:02:51]} (26... g6 {
might work better.} 27. Qe5 Qxe5 28. fxe5 Nh5) 27. Rac1 $18 {[%emt 0:00:54]} a4
{[%emt 0:03:38]} (27... Qc7 $142 28. Qe5 Bb5 29. Qxc7 Rxc7 30. Rd8+ Kh7) 28.
bxa4 {[%emt 0:02:11]} c4 {[%emt 0:00:00]} (28... Qc7 {was worth a try.} 29. Qe5
Qa5) 29. Qe5 {[%emt 0:04:39]} Qa7 {[%emt 0:00:13]} 30. Qd4 {[%emt 0:00:30]} Qc7
{[%emt 0:00:56]} 31. Qd6 {[%emt 0:00:48]} Qa5 {[%emt 0:00:40]} 32. Rb1 {
[%emt 0:02:03]} c3 {[%emt 0:00:00]} 33. Qxb4 {[%emt 0:04:27]} ({Stronger than} 
33. Rxb4 c2 34. Rc1 Rd8 $17) 33... Qf5 {[%emt 0:00:13]} 34. Rbc1 {[%emt 0:00:
42]} c2 {[%emt 0:01:04]} 35. Rd2 {[%emt 0:02:34]} ({Don't play} 35. Rd6 $6 Bc4
36. Qd2 Re8 $16) 35... Bd3 {[%emt 0:00:47]} 36. Qd6 {[%emt 0:01:25]} Be4 {
[%emt 0:00:29] Threatens to win with ...Bxg2.} 37. Qe5 {[%emt 0:00:27] aiming
for Bxe4.} Qg4 {[%emt 0:00:41][%csl Ge4][%cal Rg4g2] [#]} 38. Qg5 $1 {[%emt 0:
03:58] And now Qxg4 would win.} Qe6 {[%emt 0:00:02]} (38... Bg6 39. Qxg4) 39.
Re2 $2 {[%emt 0:05:08]} ({Only move:} 39. Bxe4 $18 Qxe4 40. h3) 39... Qc4 $14 {
[%emt 0:00:20]} 40. Qb5 {[%emt 0:01:16] Bxe4 is the strong threat.} Bd3 {
[%emt 0:01:12] Black cannot hold the game after this.} (40... Qd4 $1 $14) 41.
Rd2 $18 {[%emt 0:05:21]} Bg6 {[%emt 0:04:44] Hoping for ...Qc3.} 42. f5 {
[%emt 0:00:50]} Qf4 {[%emt 0:00:00]} (42... Qxb5 $142 43. axb5 Bxf5) 43. Rdxc2
{[%emt 0:01:42]} Rxc2 {[%emt 0:00:00]} 44. Rxc2 {[%emt 0:00:04]} Bxf5 {[%emt 0:
00:00]} 45. Rc4 {[%emt 0:00:49]} Qg5 {[%emt 0:02:11]} 46. a5 {[%emt 0:00:44]}
Qg6 {[%emt 0:00:00]} 47. Qb8+ {[%emt 0:01:22]} Kh7 {[%emt 0:00:02]} 48. Qg3 {
[%emt 0:00:11]} Bg4 {[%emt 0:01:16]} 49. h3 {[%emt 0:06:19]} Qb1+ {[%emt 0:01:
45]} 50. Kh2 {[%emt 0:00:05]} Be6 {[%emt 0:01:33]} 51. Rc3 {[%emt 0:02:30]} Bf5
{[%emt 0:00:00]} 52. a6 {[%emt 0:04:31][%cal Ya5a6,Ya6a7]} Ne4 {[%emt 0:01:06]}
53. Qe5 {[%emt 0:00:14]} Nxc3 {[%emt 0:13:25]} 54. a7 {[%emt 0:00:13]
Zwischenzug} f6 {[%emt 0:00:12]} 55. Qxc3 {[%emt 0:00:15] White mates.} Be4 {
[%emt 0:00:03]} 56. Qb3 {[%emt 0:00:12]} Qe1 {[%emt 0:00:05]} 57. Qe3 {[%emt 0:
00:00] Weighted Error Value: White=0.23 (precise) /Black=0.39} 1-0